fUST/lending_fUST_20250716
["ID","MTS","AMOUNT","RATE_DAILY","PERIOD"]
[372415591,1752635445018,-510.66167608,0.00020121,2]
[372415592,1752635445027,-1000.0,0.00020121,2]
[372415593,1752635445037,-1000.0,0.00020121,2]
[372415594,1752635445047,-1000.0,0.00020121,2]
[372415595,1752635445056,-1000.0,0.00020121,2]
[372415596,1752635445065,-279.206457,0.00020187,2]
[372415597,1752635445076,-269.18743885,0.00020317,2]
[372415598,1752635445089,-1000.0,0.00020321,2]
[372415599,1752635445098,-330.17594042,0.00020338,2]
[372415600,1752635445107,-460.0,0.00020338,2]
[372415601,1752635445117,-461.47,0.00020338,2]
[372415602,1752635445136,-1625.82,0.00020338,2]
[372415603,1752635445146,-3548.67,0.00020338,2]
[372415604,1752635445157,-453.17110988,0.00020338,2]
[372415605,1752635445169,-766.71,0.00020338,2]
[372415606,1752635445179,-460.0,0.00020338,2]
[372415607,1752635445188,-460.0,0.00020338,2]
[372415608,1752635445199,-460.0,0.00020338,2]
[372415609,1752635445208,-971.74,0.00020338,2]
[372415610,1752635445218,-1076.68,0.00020338,2]
[372415611,1752635445227,-460.0,0.00020338,2]
[372415612,1752635445237,-460.0,0.00020338,2]
[372415613,1752635445247,-460.0,0.00020338,2]
[372415614,1752635445261,-460.0,0.00020338,2]
[372415615,1752635445276,-460.0,0.00020338,2]
[372415616,1752635445286,-460.0,0.00020339,2]
[372415617,1752635445296,-460.0,0.00020339,2]
[372415618,1752635445306,-460.0,0.00020339,2]
[372415619,1752635445316,-460.0,0.00020339,2]
[372415620,1752635445326,-460.0,0.00020339,2]
[372415621,1752635445335,-307.35,0.00020339,2]
[372415622,1752635445346,-460.0,0.00020339,2]
[372415623,1752635445355,-460.0,0.00020339,2]
[372415624,1752635445365,-571.06580795,0.00020339,2]
[372415625,1752635445375,-460.0,0.00020339,2]
[372415626,1752635445384,-460.0,0.00020339,2]
[372415627,1752635445501,-460.0,0.00020339,2]
[372415628,1752635445511,-460.0,0.00020339,2]
[372415629,1752635445521,-460.0,0.00020339,2]
[372415630,1752635445531,-170.19990999,0.00020339,2]
[372415631,1752635445540,-460.0,0.00020339,2]
[372415632,1752635445550,-460.0,0.00020339,2]
[372415633,1752635445559,-614.65,0.00020339,2]
[372415634,1752635445569,-460.0,0.00020339,2]
[372415635,1752635445578,-460.0,0.00020339,2]
[372415636,1752635445587,-460.0,0.00020339,2]
[372415637,1752635445599,-460.0,0.00020339,2]
[372415638,1752635445608,-460.0,0.00020339,2]
[372415639,1752635445619,-460.0,0.00020339,2]
[372415640,1752635445628,-460.0,0.00020339,2]
[372415641,1752635445638,-460.0,0.00020339,2]
[372415642,1752635445651,-460.0,0.00020339,2]
[372415643,1752635445660,-460.0,0.00020339,2]
[372415644,1752635445670,-460.0,0.00020339,2]
[372415645,1752635445680,-460.0,0.00020339,2]
[372415646,1752635445689,-215.30485605,0.00020339,2]
[372415647,1752635445699,-460.0,0.00020339,2]
[372415648,1752635445709,-460.0,0.00020339,2]
[372415649,1752635445718,-460.0,0.00020339,2]
[372415650,1752635445727,-460.0,0.00020339,2]
[372415651,1752635445737,-289.49336918,0.00020339,2]
[372415652,1752635445747,-460.0,0.00020339,2]
[372415653,1752635445757,-460.0,0.00020339,2]
[372415654,1752635445766,-460.0,0.0002034,2]
[372415655,1752635445775,-460.0,0.0002034,2]
[372415656,1752635445785,-460.0,0.0002034,2]
[372415657,1752635445795,-460.0,0.0002034,2]
[372415658,1752635445805,-460.0,0.0002034,2]
[372415659,1752635445816,-460.0,0.0002034,2]
[372415660,1752635445825,-460.0,0.0002034,2]
[372415661,1752635445836,-460.0,0.0002034,2]
[372415662,1752635445849,-462.86783824,0.0002034,2]
[372415663,1752635445859,-460.0,0.0002034,2]
[372415664,1752635445869,-460.0,0.0002034,2]
[372415665,1752635445879,-460.0,0.0002034,2]
[372415666,1752635445889,-460.0,0.0002034,2]
[372415667,1752635445899,-460.0,0.0002034,2]
[372415668,1752635445909,-460.0,0.0002034,2]
[372415669,1752635445919,-460.0,0.0002034,2]
[372415670,1752635445928,-460.0,0.0002034,2]
[372415671,1752635445937,-460.0,0.0002034,2]
[372415672,1752635445947,-460.0,0.0002034,2]
[372415673,1752635445957,-460.0,0.0002034,2]
[372415674,1752635445967,-460.0,0.0002034,2]
[372415675,1752635445976,-460.0,0.0002034,2]
[372415676,1752635445985,-364.70469254,0.00020341,2]
[372415677,1752635445995,-460.0,0.00020341,2]
[372415678,1752635446006,-460.0,0.00020341,2]
[372415679,1752635446016,-546.03,0.00020341,2]
[372415680,1752635446025,-460.0,0.00020341,2]
[372415681,1752635446035,-575.81233998,0.00020341,2]
[372415682,1752635446044,-460.0,0.00020341,2]
[372415683,1752635446054,-460.0,0.00020341,2]
[372415684,1752635446064,-460.0,0.00020341,2]
[372415685,1752635446074,-2289.99,0.00020341,2]
[372415686,1752635446085,-460.0,0.00020341,2]
[372415687,1752635446099,-460.0,0.00020341,2]
[372415688,1752635446108,-632.42,0.00020341,2]
[372415689,1752635446119,-1688.21,0.00020341,2]
[372415690,1752635446128,-619.52,0.00020341,2]
[372415691,1752635446138,-460.0,0.00020341,2]
[372415692,1752635446147,-671.58,0.00020341,2]
[372415693,1752635446156,-460.0,0.00020341,2]
[372415694,1752635446166,-460.0,0.00020341,2]
[372415695,1752635446175,-460.0,0.00020341,2]
[372415696,1752635446185,-387.26,0.00020341,2]
[372415697,1752635446194,-266.69,0.00020341,2]
[372415698,1752635446204,-917.91,0.00020341,2]
[372415699,1752635446214,-460.0,0.00020341,2]
[372415700,1752635446223,-460.0,0.00020341,2]
[372415701,1752635446232,-200.13,0.00020341,2]
[372415702,1752635446242,-460.0,0.00020341,2]
[372415703,1752635446258,-804.55,0.00020341,2]
[372415704,1752635446271,-460.0,0.00020341,2]
[372415707,1752635446281,-460.0,0.00020342,2]
[372415709,1752635446290,-460.0,0.00020342,2]
[372415710,1752635446300,-460.0,0.00020342,2]
[372415711,1752635446310,-460.0,0.00020342,2]
[372415712,1752635446319,-460.0,0.00020342,2]
[372415713,1752635446330,-460.0,0.00020342,2]
[372415714,1752635446340,-460.0,0.00020342,2]
[372415715,1752635446354,-460.0,0.00020342,2]
[372415716,1752635446364,-460.0,0.00020342,2]
[372415717,1752635446373,-460.0,0.00020342,2]
[372415718,1752635446383,-460.0,0.00020342,2]
[372415719,1752635446392,-460.0,0.00020343,2]
[372415720,1752635446401,-460.0,0.00020343,2]
[372415721,1752635446411,-460.0,0.00020343,2]
[372415722,1752635446420,-460.0,0.00020343,2]
[372415723,1752635446429,-1121.36,0.00020343,2]
[372415724,1752635446438,-460.0,0.00020344,2]
[372415725,1752635446447,-460.0,0.00020344,2]
[372415726,1752635446456,-460.0,0.00020344,2]
[372415727,1752635446466,-460.0,0.00020344,2]
[372415728,1752635446476,-338.12,0.00020344,2]
[372415729,1752635446485,-460.0,0.00020344,2]
[372415730,1752635446495,-460.0,0.00020344,2]
[372415731,1752635446505,-460.0,0.00020344,2]
[372415732,1752635446514,-460.0,0.00020346,2]
[372415733,1752635446523,-460.0,0.00020346,2]
[372415734,1752635446533,-460.0,0.00020346,2]
[372415735,1752635446543,-460.0,0.00020346,2]
[372415736,1752635446552,-25160.89,0.000204,2]
[372415737,1752635446562,-160.0,0.000204,2]
[372415738,1752635446571,-460.0,0.00020408,2]
[372415739,1752635446581,-456.7914114,0.00020573,2]
[372415740,1752635446590,-2021.19207209,0.00020578,2]
[372415741,1752635446605,-153.72017957,0.00020605,2]
[372415742,1752635446616,-500.0,0.00020605,2]
[372415743,1752635446626,-526.78,0.00020605,3]
[372415744,1752635446636,-460.0,0.00020612,2]
[372415745,1752635446646,-461.47,0.00020612,2]
[372415746,1752635446656,-1625.82,0.00020612,2]
[372415747,1752635446666,-3548.67,0.00020612,2]
[372415748,1752635446675,-766.71,0.00020612,2]
[372415749,1752635446685,-460.0,0.00020612,2]
[372415750,1752635446695,-460.0,0.00020612,2]
[372415751,1752635446704,-460.0,0.00020612,2]
[372415752,1752635446714,-971.74,0.00020612,2]
[372415753,1752635446724,-1076.68,0.00020612,2]
[372415754,1752635446734,-460.0,0.00020612,2]
[372415755,1752635446744,-460.0,0.00020612,2]
[372415756,1752635446753,-460.0,0.00020612,2]
[372415757,1752635446763,-460.0,0.00020612,2]
[372415758,1752635446773,-460.0,0.00020612,2]
[372415759,1752635446784,-460.0,0.00020613,2]
[372415760,1752635446794,-460.0,0.00020613,2]
[372415761,1752635446803,-460.0,0.00020613,2]
[372415762,1752635446812,-460.0,0.00020613,2]
[372415763,1752635446822,-460.0,0.00020613,2]
[372415764,1752635446832,-460.0,0.00020613,2]
[372415765,1752635446842,-460.0,0.00020613,2]
[372415766,1752635446860,-460.0,0.00020613,2]
[372415767,1752635446870,-403.18,0.00020613,2]
[372415768,1752635446880,-460.0,0.00020613,2]
[372415769,1752635446890,-460.0,0.00020613,2]
[372415770,1752635446900,-460.0,0.00020613,2]
[372415771,1752635446909,-460.0,0.00020613,2]
[372415772,1752635446920,-614.65,0.00020613,2]
[372415773,1752635446929,-460.0,0.00020613,2]
[372415774,1752635446938,-460.0,0.00020613,2]
[372415775,1752635446947,-460.0,0.00020613,2]
[372415776,1752635446957,-460.0,0.00020613,2]
[372415777,1752635446967,-460.0,0.00020613,2]
[372415778,1752635446977,-460.0,0.00020613,2]
[372415779,1752635446986,-460.0,0.00020613,2]
[372415780,1752635446995,-460.0,0.00020613,2]
[372415781,1752635447005,-460.0,0.00020613,2]
[372415782,1752635447014,-460.0,0.00020613,2]
[372415783,1752635447023,-331.69337383,0.00020613,2]
[372415784,1752635447032,-460.0,0.00020613,2]
[372415785,1752635447042,-460.0,0.00020613,2]
[372415786,1752635447051,-460.0,0.00020613,2]
[372415787,1752635447061,-460.0,0.00020613,2]
[372415788,1752635447071,-460.0,0.00020613,2]
[372415789,1752635447084,-460.0,0.00020613,2]
[372415790,1752635447093,-460.0,0.00020613,2]
[372415791,1752635447109,-460.0,0.00020614,2]
[372415792,1752635447119,-460.0,0.00020614,2]
[372415793,1752635447130,-513.35514288,0.00020614,2]
[372415794,1752635447140,-460.0,0.00020614,2]
[372415795,1752635447150,-262.83657824,0.00020614,2]
[372415796,1752635447161,-460.0,0.00020614,2]
[372415797,1752635447171,-460.0,0.00020614,2]
[372415798,1752635447182,-460.0,0.00020614,2]
[372415799,1752635447192,-460.0,0.00020614,2]
[372415800,1752635447202,-460.0,0.00020614,2]
[372415801,1752635447212,-460.0,0.00020614,2]
[372415802,1752635447222,-460.0,0.00020614,2]
[372415803,1752635447232,-460.0,0.00020614,2]
[372415804,1752635447242,-460.0,0.00020614,2]
[372415805,1752635447251,-460.0,0.00020614,2]
[372415806,1752635447261,-460.0,0.00020614,2]
[372415807,1752635447271,-460.0,0.00020614,2]
[372415808,1752635447280,-460.0,0.00020614,2]
[372415809,1752635447290,-460.0,0.00020614,2]
[372415810,1752635447299,-460.0,0.00020614,2]
[372415811,1752635447308,-460.0,0.00020615,2]
[372415812,1752635447318,-460.0,0.00020615,2]
[372415813,1752635447329,-460.0,0.00020615,2]
[372415814,1752635447339,-460.0,0.00020615,2]
[372415815,1752635447352,-460.0,0.00020615,2]
[372415816,1752635447361,-2289.99,0.00020615,2]
[372415817,1752635447371,-460.0,0.00020615,2]
[372415818,1752635447380,-460.0,0.00020615,2]
[372415819,1752635447390,-632.42,0.00020615,2]
[372415820,1752635447400,-1688.21,0.00020615,2]
[372415821,1752635447409,-619.52,0.00020615,2]
[372415822,1752635447419,-460.0,0.00020615,2]
[372415823,1752635447430,-671.58,0.00020615,2]
[372415824,1752635447440,-460.0,0.00020615,2]
[372415825,1752635447450,-460.0,0.00020615,2]
[372415826,1752635447460,-460.0,0.00020615,2]
[372415827,1752635447469,-917.91,0.00020615,2]
[372415828,1752635447479,-460.0,0.00020615,2]
[372415829,1752635447488,-460.0,0.00020615,2]
[372415830,1752635447497,-210.59271069,0.00020615,2]
[372415831,1752635447507,-804.55,0.00020615,2]
[372415832,1752635447516,-460.0,0.00020615,2]
[372415833,1752635447526,-460.0,0.00020616,2]
[372415834,1752635447536,-460.0,0.00020616,2]
[372415835,1752635447546,-163.23226988,0.00020616,2]
[372415836,1752635447556,-460.0,0.00020616,2]
[372415837,1752635447566,-460.0,0.00020616,2]
[372415838,1752635447577,-460.0,0.00020616,2]
[372415839,1752635447586,-460.0,0.00020616,2]
[372415840,1752635447598,-460.0,0.00020616,2]
[372415841,1752635447608,-460.0,0.00020616,2]
[372415842,1752635447616,-460.0,0.00020616,2]
[372415843,1752635447626,-460.0,0.00020617,2]
[372415844,1752635447635,-460.0,0.00020617,2]
[372415845,1752635447644,-460.0,0.00020617,2]
[372415846,1752635447654,-460.0,0.00020617,2]
[372415847,1752635447663,-1121.36,0.00020617,2]
[372415848,1752635447674,-201.65035479,0.00020618,2]
[372415849,1752635447683,-460.0,0.00020618,2]
[372415850,1752635447693,-460.0,0.00020618,2]
[372415851,1752635447702,-460.0,0.00020618,2]
[372415852,1752635447711,-460.0,0.00020618,2]
[372415853,1752635447722,-460.0,0.00020618,2]
[372415854,1752635447731,-525.21266598,0.00020618,2]
[372415855,1752635447740,-460.0,0.0002062,2]
[372415856,1752635447835,-460.0,0.0002062,2]
[372415857,1752635447848,-460.0,0.0002062,2]
[372415858,1752635447857,-300.31602514,0.00020638,2]
[372415859,1752635447867,-1031.66363147,0.00020668,2]
[372415860,1752635447876,-1024.40790772,0.00020668,2]
[372415861,1752635447886,-325.67799537,0.00020668,2]
[372415862,1752635447895,-408.88614509,0.00020668,2]
[372415863,1752635447905,-507.96290966,0.00020668,2]
[372415864,1752635447914,-842.96839752,0.00020668,2]
[372415865,1752635447925,-460.0,0.00020682,2]
[372415866,1752635447934,-151.0,0.00020838,2]
[372415867,1752635447948,-151.0,0.00020838,2]
[372415868,1752635447959,-500.0,0.00020838,2]
[372415869,1752635447968,-151.26173454,0.00020838,2]
[372415870,1752635447977,-151.49410589,0.00020865,2]
[372415871,1752635447986,-151.0,0.00020865,2]
[372415872,1752635447996,-500.0,0.00020865,2]
[372415873,1752635448006,-504.14347637,0.00020868,2]
[372415874,1752635448015,-500.0,0.00020868,2]
[372415875,1752635448024,-500.39827166,0.00020868,2]
[372415876,1752635448034,-500.0,0.00020868,2]
[372415877,1752635448043,-504.38077274,0.00020868,2]
[372415878,1752635448053,-1026.52056024,0.00020868,2]
[372415879,1752635448063,-382.9,0.00020879,3]
[372415880,1752635448074,-460.0,0.00020886,2]
[372415881,1752635448089,-461.47,0.00020886,2]
[372415882,1752635448102,-1625.82,0.00020886,2]
[372415883,1752635448113,-3548.67,0.00020886,2]
[372415884,1752635448123,-766.71,0.00020886,2]
[372415885,1752635448134,-460.0,0.00020886,2]
[372415886,1752635448144,-575.32543389,0.00020886,2]
[372415887,1752635448154,-460.0,0.00020886,2]
[372415888,1752635448167,-971.74,0.00020886,2]
[372415889,1752635448177,-1076.68,0.00020886,2]
[372415890,1752635448187,-460.0,0.00020886,2]
[372415891,1752635448196,-460.0,0.00020886,2]
[372415892,1752635448206,-460.0,0.00020886,2]
[372415893,1752635448216,-460.0,0.00020886,2]
[372415894,1752635448226,-460.0,0.00020886,2]
[372415895,1752635448237,-464.13756573,0.00020887,2]
[372415896,1752635448247,-460.0,0.00020887,2]
[372415897,1752635448257,-460.0,0.00020887,2]
[372415898,1752635448266,-460.0,0.00020887,2]
[372415899,1752635448276,-460.0,0.00020887,2]
[372415900,1752635448285,-310.5720443,0.00020887,2]
[372415901,1752635448295,-557.82608193,0.00020887,2]
[372415902,1752635448305,-460.0,0.00020887,2]
[372415903,1752635448315,-276.89,0.00020887,2]
[372415904,1752635448328,-460.0,0.00020887,2]
[372415905,1752635448338,-460.0,0.00020887,2]
[372415906,1752635448350,-460.0,0.00020887,2]
[372415907,1752635448361,-614.65,0.00020887,2]
[372415908,1752635448371,-460.0,0.00020887,2]
[372415909,1752635448381,-521.99,0.00020887,2]
[372415910,1752635448392,-460.0,0.00020887,2]
[372415911,1752635448407,-460.0,0.00020887,2]
[372415912,1752635448419,-460.0,0.00020887,2]
[372415913,1752635448437,-460.0,0.00020887,2]
[372415914,1752635448447,-460.0,0.00020887,2]
[372415915,1752635448458,-460.0,0.00020887,2]
[372415916,1752635448469,-460.0,0.00020887,2]
[372415917,1752635448479,-460.0,0.00020887,2]
[372415918,1752635448490,-460.0,0.00020887,2]
[372415919,1752635448500,-460.0,0.00020887,2]
[372415920,1752635448510,-460.0,0.00020887,2]
[372415921,1752635448521,-359.99,0.00020887,2]
[372415922,1752635448532,-460.0,0.00020887,2]
[372415923,1752635448543,-460.0,0.00020887,2]
[372415924,1752635448555,-464.81477792,0.00020888,2]
[372415925,1752635448565,-470.71915391,0.00020888,2]
[372415926,1752635448577,-460.0,0.00020888,2]
[372415927,1752635448592,-460.0,0.00020888,2]
[372415928,1752635448607,-460.0,0.00020888,2]
[372415929,1752635448618,-460.0,0.00020888,2]
[372415930,1752635448629,-460.0,0.00020888,2]
[372415931,1752635448640,-190.03330852,0.00020888,2]
[372415932,1752635448651,-460.0,0.00020888,2]
[372415933,1752635448660,-460.0,0.00020888,2]
[372415934,1752635448670,-460.0,0.00020888,2]
[372415935,1752635448681,-460.0,0.00020888,2]
[372415936,1752635448691,-460.0,0.00020888,2]
[372415937,1752635448703,-460.0,0.00020888,2]
[372415938,1752635448713,-460.0,0.00020888,2]
[372415939,1752635448724,-460.0,0.00020888,2]
[372415940,1752635448734,-460.0,0.00020888,2]
[372415941,1752635448744,-460.0,0.00020888,2]
[372415942,1752635448754,-498.84519211,0.00020889,2]
[372415943,1752635448765,-460.0,0.00020889,2]
[372415944,1752635448775,-460.0,0.00020889,2]
[372415945,1752635448785,-460.0,0.00020889,2]
[372415946,1752635448795,-460.0,0.00020889,2]
[372415947,1752635448808,-2289.99,0.00020889,2]
[372415948,1752635448818,-460.0,0.00020889,2]
[372415949,1752635448828,-460.0,0.00020889,2]
[372415950,1752635448838,-632.42,0.00020889,2]
[372415951,1752635448849,-1688.21,0.00020889,2]
[372415952,1752635448859,-619.52,0.00020889,2]
[372415953,1752635448869,-460.0,0.00020889,2]
[372415954,1752635448880,-671.58,0.00020889,2]
[372415955,1752635448890,-411.60184964,0.00020889,2]
[372415956,1752635448900,-460.0,0.00020889,2]
[372415957,1752635448910,-460.0,0.00020889,2]
[372415958,1752635448920,-917.91,0.00020889,2]
[372415959,1752635448930,-460.0,0.00020889,2]
[372415960,1752635448940,-460.0,0.00020889,2]
[372415961,1752635448951,-804.55,0.00020889,2]
[372415962,1752635448960,-460.81153888,0.0002089,2]
[372415963,1752635448970,-460.0,0.0002089,2]
[372415964,1752635448980,-460.0,0.0002089,2]
[372415965,1752635448990,-236.88,0.0002089,2]
[372415966,1752635448999,-460.0,0.0002089,2]
[372415967,1752635449010,-460.0,0.0002089,2]
[372415968,1752635449020,-460.0,0.0002089,2]
[372415969,1752635449029,-478.06820138,0.00020891,2]
[372415970,1752635449039,-460.0,0.00020891,2]
[372415971,1752635449049,-460.0,0.00020891,2]
[372415972,1752635449059,-460.0,0.00020891,2]
[372415973,1752635449069,-1121.36,0.00020891,2]
[372415974,1752635449079,-460.0,0.00020892,2]
[372415975,1752635449094,-460.0,0.00020892,2]
[372415976,1752635449105,-460.0,0.00020892,2]
[372415977,1752635449115,-460.0,0.00020892,2]
[372415978,1752635449125,-460.0,0.00020892,2]
[372415979,1752635449135,-151.0,0.00020893,2]
[372415980,1752635449146,-500.8519617,0.00020893,2]
[372415981,1752635449156,-460.0,0.00020893,2]
[372415982,1752635449166,-460.0,0.00020893,2]
[372415983,1752635449176,-999.62,0.000209,2]
[372415984,1752635449186,-1598.62,0.000209,2]
[372415985,1752635449196,-200.32308865,0.0002092,2]
[372415986,1752635449206,-260.0,0.00020948,2]
[372415987,1752635449216,-493.23261521,0.00020966,2]
[372415988,1752635449226,-420.0,0.00020968,2]
[372415989,1752635449236,-420.0,0.00020968,2]
[372415990,1752635449246,-420.0,0.00020968,2]
[372415991,1752635449255,-1200.0,0.00020969,2]
[372415992,1752635449266,-1680.0,0.00021001,2]
[372415993,1752635449276,-230.8109288,0.00021067,2]
[372415994,1752635449286,-520.85416667,0.00021067,2]
[372415995,1752635449297,-160.0,0.00021068,2]
[372415996,1752635449306,-160.0,0.00021068,2]
[372415997,1752635449316,-160.0,0.00021068,2]
[372415998,1752635449326,-160.0,0.00021068,2]
[372415999,1752635449336,-838.99048831,0.00021068,2]
[372416000,1752635449347,-468.75,0.00021068,2]
[372416001,1752635449357,-160.0,0.00021068,2]
[372416002,1752635449368,-215.5496034,0.00021068,2]
[372416003,1752635449378,-12605.49131908,0.00021068,2]
[372416004,1752635449389,-160.0,0.00021068,2]
[372416005,1752635449400,-160.0,0.00021068,2]
[372416006,1752635449411,-460.0,0.0002116,2]
[372416007,1752635449427,-461.47,0.0002116,2]
[372416008,1752635449437,-1625.82,0.0002116,2]
[372416009,1752635449447,-3548.67,0.0002116,2]
[372416010,1752635449458,-766.71,0.0002116,2]
[372416011,1752635449467,-460.0,0.0002116,2]
[372416012,1752635449477,-460.0,0.0002116,2]
[372416013,1752635449487,-971.74,0.0002116,2]
[372416014,1752635449496,-1076.68,0.0002116,2]
[372416015,1752635449506,-460.0,0.0002116,2]
[372416016,1752635449515,-344.9961898,0.0002116,2]
[372416017,1752635449525,-460.0,0.0002116,2]
[372416018,1752635449534,-460.0,0.0002116,2]
[372416019,1752635449543,-460.0,0.0002116,2]
[372416020,1752635449552,-460.0,0.00021161,2]
[372416021,1752635449562,-460.0,0.00021161,2]
[372416022,1752635449571,-460.0,0.00021161,2]
[372416023,1752635449580,-460.0,0.00021161,2]
[372416024,1752635449589,-183.40695992,0.00021161,2]
[372416025,1752635449600,-460.0,0.00021161,2]
[372416026,1752635449610,-460.0,0.00021161,2]
[372416027,1752635449619,-614.65,0.00021161,2]
[372416028,1752635449629,-460.0,0.00021161,2]
[372416029,1752635449639,-460.0,0.00021161,2]
[372416030,1752635449649,-460.0,0.00021161,2]
[372416031,1752635449659,-460.0,0.00021161,2]
[372416032,1752635449668,-460.0,0.00021161,2]
[372416033,1752635449678,-460.0,0.00021161,2]
[372416034,1752635449688,-460.0,0.00021161,2]
[372416035,1752635449697,-460.0,0.00021161,2]
[372416036,1752635449707,-460.0,0.00021161,2]
[372416037,1752635449717,-460.0,0.00021161,2]
[372416038,1752635449727,-460.0,0.00021161,2]
[372416039,1752635449736,-460.0,0.00021161,2]
[372416040,1752635449745,-460.0,0.00021161,2]
[372416041,1752635449755,-460.0,0.00021161,2]
[372416042,1752635449765,-460.0,0.00021162,2]
[372416043,1752635449774,-467.1259559,0.00021162,2]
[372416044,1752635449784,-163.74326086,0.00021162,2]
[372416045,1752635449793,-460.0,0.00021162,2]
[372416046,1752635449803,-460.0,0.00021162,2]
[372416047,1752635449813,-460.0,0.00021162,2]
[372416048,1752635449823,-460.0,0.00021162,2]
[372416049,1752635449832,-460.0,0.00021162,2]
[372416050,1752635449842,-460.0,0.00021162,2]
[372416051,1752635449854,-460.0,0.00021162,2]
[372416052,1752635449864,-460.0,0.00021162,2]
[372416053,1752635449875,-362.79899814,0.00021162,2]
[372416054,1752635449884,-460.0,0.00021162,2]
[372416055,1752635449894,-460.0,0.00021162,2]
[372416056,1752635449904,-460.0,0.00021163,2]
[372416057,1752635449913,-460.0,0.00021163,2]
[372416058,1752635449923,-460.0,0.00021163,2]
[372416059,1752635449933,-460.0,0.00021163,2]
[372416060,1752635449943,-2289.99,0.00021163,2]
[372416061,1752635449953,-460.0,0.00021163,2]
[372416062,1752635450047,-460.0,0.00021163,2]
[372416063,1752635450057,-632.42,0.00021163,2]
[372416064,1752635450067,-1688.21,0.00021163,2]
[372416065,1752635450079,-619.52,0.00021163,2]
[372416066,1752635450090,-460.0,0.00021163,2]
[372416067,1752635450102,-671.58,0.00021163,2]
[372416068,1752635450112,-460.0,0.00021163,2]
[372416069,1752635450123,-460.0,0.00021163,2]
[372416070,1752635450133,-917.91,0.00021163,2]
[372416071,1752635450142,-460.0,0.00021163,2]
[372416072,1752635450152,-460.0,0.00021163,2]
[372416073,1752635450163,-804.55,0.00021163,2]
[372416074,1752635450173,-460.0,0.00021164,2]
[372416075,1752635450182,-460.0,0.00021164,2]
[372416076,1752635450191,-460.0,0.00021164,2]
[372416077,1752635450202,-451.7051017,0.00021164,2]
[372416078,1752635450211,-460.0,0.00021164,2]
[372416079,1752635450221,-460.0,0.00021165,2]
[372416080,1752635450230,-184.22711808,0.00021165,2]
[372416081,1752635450240,-460.0,0.00021165,2]
[372416082,1752635450249,-1121.36,0.00021165,2]
[372416083,1752635450258,-460.0,0.00021166,2]
[372416084,1752635450268,-460.0,0.00021166,2]
[372416085,1752635450277,-460.0,0.00021166,2]
[372416086,1752635450287,-460.0,0.00021166,2]
[372416087,1752635450296,-460.0,0.00021166,2]
[372416088,1752635450305,-460.0,0.00021167,2]
[372416089,1752635450315,-155.0,0.00021168,2]
[372416090,1752635450324,-501.55765168,0.00021326,2]
[372416091,1752635450333,-501.75506861,0.00021326,2]
[372416092,1752635450342,-471.55242615,0.00021326,2]
[372416093,1752635450354,-509.97453213,0.00021326,2]